[Event "Late-Titled-Tuesday-Blitz-April-30-2024"]
[Site "Chess.com"]
[Date "2024.04.30"]
[Round "3"]
[White "TatjanaVasilevich"]
[Black "Charodej1"]
[Result "1-0"]
[WhiteElo "2620"]
[BlackElo "2424"]
[TimeControl "180+1"]
[EndTime "14:26:40 PDT"]
[Termination "TatjanaVasilevich won by resignation"]

1. d4 {[%clk 0:02:59.8]} 1... Nf6 {[%clk 0:02:57.6]} 2. c4 {[%clk 0:02:59.9]}
2... e6 {[%clk 0:02:56.9]} 3. Nc3 {[%clk 0:02:57.4]} 3... d5 {[%clk 0:02:56.5]}
4. cxd5 {[%clk 0:02:56.9]} 4... exd5 {[%clk 0:02:56.5]} 5. Bg5 {[%clk
0:02:56.9]} 5... c6 {[%clk 0:02:56]} 6. e3 {[%clk 0:02:56.5]} 6... Be7 {[%clk
0:02:55.1]} 7. Bd3 {[%clk 0:02:56.4]} 7... O-O {[%clk 0:02:54]} 8. Nge2 {[%clk
0:02:56.4]} 8... Nbd7 {[%clk 0:02:53.7]} 9. O-O {[%clk 0:02:56]} 9... Re8 {[%clk
0:02:53.1]} 10. Qc2 {[%clk 0:02:55.8]} 10... Nf8 {[%clk 0:02:49.8]} 11. Rfe1
{[%clk 0:02:52.8]} 11... h6 {[%clk 0:02:43.1]} 12. Bh4 {[%clk 0:02:52.8]} 12...
Ng4 {[%clk 0:02:43.2]} 13. Bxe7 {[%clk 0:02:48.3]} 13... Qxe7 {[%clk 0:02:44.1]}
14. h3 {[%clk 0:02:48.8]} 14... Nf6 {[%clk 0:02:42.9]} 15. Ng3 {[%clk 0:02:49]}
15... Qd6 {[%clk 0:02:24.1]} 16. Rad1 {[%clk 0:02:47]} 16... h5 {[%clk
0:02:10.4]} 17. e4 {[%clk 0:02:34.2]} 17... dxe4 {[%clk 0:02:04.8]} 18. Ngxe4
{[%clk 0:02:34.3]} 18... Nxe4 {[%clk 0:02:04.5]} 19. Nxe4 {[%clk 0:02:35.2]}
19... Qd8 {[%clk 0:02:02]} 20. Qe2 {[%clk 0:02:34.3]} 20... Bf5 {[%clk
0:01:40.6]} 21. Qxh5 {[%clk 0:02:28.5]} 21... Bg6 {[%clk 0:01:37.6]} 22. Qc5
{[%clk 0:02:22.8]} 22... Ne6 {[%clk 0:01:32.5]} 23. Qb4 {[%clk 0:02:21.3]} 23...
Qxd4 {[%clk 0:01:25.5]} 24. Qxb7 {[%clk 0:02:14.5]} 24... Rab8 {[%clk
0:01:01.8]} 25. Qxc6 {[%clk 0:02:13]} 25... Rec8 {[%clk 0:01:01.7]} 26. Qd6
{[%clk 0:02:08.8]} 26... Qxb2 {[%clk 0:01:01.4]} 27. Rb1 {[%clk 0:02:08.1]} 1-0

[Event "Late-Titled-Tuesday-Blitz-April-30-2024"]
[Site "Chess.com"]
[Date "2024.04.30"]
[Round "3"]
[White "xberli"]
[Black "H3nriqueTV"]
[Result "1-0"]
[WhiteElo "2624"]
[BlackElo "2430"]
[TimeControl "180+1"]
[EndTime "14:26:51 PDT"]
[Termination "xberli won by checkmate"]

1. d4 {[%clk 0:02:42.7]} 1... Nf6 {[%clk 0:02:58.7]} 2. c4 {[%clk 0:02:42.3]}
2... g6 {[%clk 0:02:58]} 3. Nf3 {[%clk 0:02:40.9]} 3... Bg7 {[%clk 0:02:58.1]}
4. g3 {[%clk 0:02:41]} 4... O-O {[%clk 0:02:58.4]} 5. Bg2 {[%clk 0:02:41.8]}
5... c5 {[%clk 0:02:58.7]} 6. d5 {[%clk 0:02:41.5]} 6... d6 {[%clk 0:02:58.7]}
7. O-O {[%clk 0:02:41.1]} 7... b5 {[%clk 0:02:52.6]} 8. cxb5 {[%clk 0:02:40.9]}
8... a6 {[%clk 0:02:53]} 9. bxa6 {[%clk 0:02:41.8]} 9... Bxa6 {[%clk 0:02:53.1]}
10. Nc3 {[%clk 0:02:42.5]} 10... Nbd7 {[%clk 0:02:52.6]} 11. Rb1 {[%clk
0:02:42.7]} 11... Rb8 {[%clk 0:02:50.6]} 12. Qc2 {[%clk 0:02:41.1]} 12... Nb6
{[%clk 0:02:49.8]} 13. Rd1 {[%clk 0:02:38.1]} 13... Bc4 {[%clk 0:02:35.5]} 14.
e4 {[%clk 0:02:33.4]} 14... Ng4 {[%clk 0:02:24.1]} 15. b3 {[%clk 0:02:30.4]}
15... Ba6 {[%clk 0:02:24.1]} 16. Bb2 {[%clk 0:02:29.7]} 16... h5 {[%clk
0:02:15.1]} 17. h3 {[%clk 0:02:29.3]} 17... Ne5 {[%clk 0:01:49.8]} 18. Nxe5
{[%clk 0:02:26.5]} 18... Bxe5 {[%clk 0:01:49.7]} 19. Ne2 {[%clk 0:02:24.6]}
19... f6 {[%clk 0:01:46.9]} 20. Nf4 {[%clk 0:02:21.1]} 20... Bxf4 {[%clk
0:01:44.6]} 21. gxf4 {[%clk 0:02:21.8]} 21... Qd7 {[%clk 0:01:30.5]} 22. e5
{[%clk 0:02:19.1]} 22... Kg7 {[%clk 0:01:12.7]} 23. e6 {[%clk 0:02:16.4]} 23...
Qc7 {[%clk 0:01:06.7]} 24. Kh2 {[%clk 0:02:16.5]} 24... c4 {[%clk 0:01:02.1]}
25. Rg1 {[%clk 0:02:16.4]} 25... Qc5 {[%clk 0:00:47.1]} 26. b4 {[%clk
0:02:12.1]} 26... Qb5 {[%clk 0:00:39.2]} 27. Bf3 {[%clk 0:02:08.2]} 27... Qe8
{[%clk 0:00:34.6]} 28. Bxh5 {[%clk 0:02:06.8]} 28... Nxd5 {[%clk 0:00:35.2]} 29.
Rxg6+ {[%clk 0:02:05.4]} 29... Kh8 {[%clk 0:00:28.3]} 30. Rh6+ {[%clk
0:02:04.3]} 30... Kg7 {[%clk 0:00:27.5]} 31. Qh7# {[%clk 0:02:05.2]} 1-0

[Event "Late-Titled-Tuesday-Blitz-April-30-2024"]
[Site "Chess.com"]
[Date "2024.04.30"]
[Round "3"]
[White "Carlitus2004"]
[Black "Adar_07"]
[Result "0-1"]
[WhiteElo "2486"]
[BlackElo "2710"]
[TimeControl "180+1"]
[EndTime "14:27:00 PDT"]
[Termination "Adar_07 won by resignation"]

1. Nf3 {[%clk 0:03:00.9]} 1... Nf6 {[%clk 0:02:59.5]} 2. e3 {[%clk 0:03:00.5]}
2... d5 {[%clk 0:02:59.5]} 3. b3 {[%clk 0:02:58.9]} 3... c6 {[%clk 0:02:59.4]}
4. Bb2 {[%clk 0:02:59]} 4... Bg4 {[%clk 0:03:00]} 5. Be2 {[%clk 0:02:57.8]} 5...
e6 {[%clk 0:03:00.5]} 6. O-O {[%clk 0:02:58.4]} 6... Bd6 {[%clk 0:03:00.3]} 7.
d4 {[%clk 0:02:58.4]} 7... Nbd7 {[%clk 0:03:00.3]} 8. Nbd2 {[%clk 0:02:59]} 8...
h5 {[%clk 0:02:59.8]} 9. c4 {[%clk 0:02:56.8]} 9... Qc7 {[%clk 0:03:00]} 10. Qc2
{[%clk 0:02:46.2]} 10... Bxh2+ {[%clk 0:02:56.3]} 11. Nxh2 {[%clk 0:02:46.9]}
11... Bxe2 {[%clk 0:02:57.1]} 12. Rfe1 {[%clk 0:02:47.6]} 12... Ng4 {[%clk
0:02:56.3]} 13. Nhf3 {[%clk 0:02:30.8]} 13... Bxf3 {[%clk 0:02:52.7]} 14. Nxf3
{[%clk 0:02:31.7]} 14... Ndf6 {[%clk 0:02:50.4]} 15. Ba3 {[%clk 0:02:15.9]}
15... Ne4 {[%clk 0:02:47.4]} 16. cxd5 {[%clk 0:02:06.8]} 16... exd5 {[%clk
0:02:45.7]} 17. Ne5 {[%clk 0:02:06.9]} 17... f6 {[%clk 0:02:24.6]} 18. Nd3
{[%clk 0:01:51]} 18... Qh2+ {[%clk 0:02:14]} 19. Kf1 {[%clk 0:01:51.2]} 19...
Qh1+ {[%clk 0:02:14.9]} 20. Ke2 {[%clk 0:01:51.8]} 20... Qxg2 {[%clk 0:02:15.8]}
21. Rg1 {[%clk 0:01:48.7]} 21... Qh2 {[%clk 0:02:09.3]} 22. Rh1 {[%clk
0:01:46.5]} 22... Ng3+ {[%clk 0:02:09.4]} 23. Kf3 {[%clk 0:01:43.7]} 23... Nxh1
{[%clk 0:02:08.3]} 24. Qc5 {[%clk 0:01:42.9]} 24... Qh3+ {[%clk 0:01:59.5]} 25.
Ke2 {[%clk 0:01:42]} 25... Ng3+ {[%clk 0:01:58.1]} 26. fxg3 {[%clk 0:01:39.2]}
26... Qg2+ {[%clk 0:01:58.1]} 27. Ke1 {[%clk 0:01:29.4]} 27... O-O-O {[%clk
0:01:52.9]} 28. Qxa7 {[%clk 0:01:27.4]} 28... Rhe8 {[%clk 0:01:42.9]} 29. Qa8+
{[%clk 0:01:14.5]} 29... Kc7 {[%clk 0:01:43]} 30. Qa5+ {[%clk 0:01:14.7]} 30...
Kb8 {[%clk 0:01:43.3]} 31. Be7 {[%clk 0:01:11.5]} 31... Qg1+ {[%clk 0:01:41.1]}
32. Kd2 {[%clk 0:01:03.5]} 32... Qxe3+ {[%clk 0:01:42]} 33. Kc2 {[%clk
0:01:02.8]} 33... Qxe7 {[%clk 0:01:42.9]} 34. Nc5 {[%clk 0:01:02.7]} 34... Qe2+
{[%clk 0:01:41.8]} 35. Kc3 {[%clk 0:01:02.2]} 35... Re3+ {[%clk 0:01:39.7]} 36.
Kb4 {[%clk 0:01:01.7]} 36... Qd2+ {[%clk 0:01:40.4]} 37. Ka4 {[%clk 0:01:01.9]}
37... b5+ {[%clk 0:01:40.8]} 0-1

[Event "Late-Titled-Tuesday-Blitz-April-30-2024"]
[Site "Chess.com"]
[Date "2024.04.30"]
[Round "3"]
[White "patzer-reloaded"]
[Black "rhwr"]
[Result "1-0"]
[WhiteElo "2562"]
[BlackElo "2279"]
[TimeControl "180+1"]
[EndTime "14:27:01 PDT"]
[Termination "patzer-reloaded won by resignation"]

1. d3 {[%clk 0:03:00.9]} 1... d5 {[%clk 0:02:58.3]} 2. Nf3 {[%clk 0:03:01]} 2...
Nc6 {[%clk 0:02:54.1]} 3. g3 {[%clk 0:03:01.1]} 3... e5 {[%clk 0:02:53.8]} 4.
Bg2 {[%clk 0:03:01.4]} 4... Nf6 {[%clk 0:02:51.2]} 5. O-O {[%clk 0:03:01.5]}
5... Be7 {[%clk 0:02:50.9]} 6. Bg5 {[%clk 0:03:00]} 6... h6 {[%clk 0:02:50.3]}
7. Bxf6 {[%clk 0:02:59.7]} 7... Bxf6 {[%clk 0:02:50.5]} 8. e4 {[%clk 0:02:57.7]}
8... dxe4 {[%clk 0:02:47.5]} 9. dxe4 {[%clk 0:02:57.1]} 9... Qxd1 {[%clk
0:02:47.2]} 10. Rxd1 {[%clk 0:02:56.6]} 10... Bg4 {[%clk 0:02:47.3]} 11. c3
{[%clk 0:02:51.7]} 11... Ke7 {[%clk 0:02:19.9]} 12. Nbd2 {[%clk 0:02:50.7]}
12... Rhd8 {[%clk 0:02:17.6]} 13. Nc4 {[%clk 0:02:50.2]} 13... Ke6 {[%clk
0:02:12.7]} 14. Ne3 {[%clk 0:02:44.7]} 14... Bxf3 {[%clk 0:02:05.6]} 15. Bxf3
{[%clk 0:02:45.6]} 15... Rxd1+ {[%clk 0:01:30.6]} 16. Rxd1 {[%clk 0:02:44.3]}
16... Bd8 {[%clk 0:01:31.1]} 17. Nd5 {[%clk 0:02:28.5]} 17... g6 {[%clk
0:01:28]} 18. Be2 {[%clk 0:02:09.6]} 18... Ne7 {[%clk 0:00:48.3]} 19. Bc4 {[%clk
0:02:07.7]} 19... Nxd5 {[%clk 0:00:47.7]} 20. Bxd5+ {[%clk 0:01:56.9]} 20... Ke7
{[%clk 0:00:48]} 21. Bxb7 {[%clk 0:01:54]} 21... Rb8 {[%clk 0:00:48]} 22. Bc6
{[%clk 0:01:54.1]} 22... Rxb2 {[%clk 0:00:47.4]} 23. Rd7+ {[%clk 0:01:52.3]}
23... Kf8 {[%clk 0:00:38.5]} 24. Rxd8+ {[%clk 0:01:51.8]} 24... Kg7 {[%clk
0:00:38.9]} 25. Bd5 {[%clk 0:01:47.9]} 1-0

[Event "Late-Titled-Tuesday-Blitz-April-30-2024"]
[Site "Chess.com"]
[Date "2024.04.30"]
[Round "3"]
[White "VirtualCoach"]
[Black "NLLO777"]
[Result "0-1"]
[WhiteElo "2070"]
[BlackElo "2542"]
[TimeControl "180+1"]
[EndTime "14:27:02 PDT"]
[Termination "NLLO777 won by resignation"]

1. Nf3 {[%clk 0:03:00.9]} 1... Nf6 {[%clk 0:02:59.9]} 2. b3 {[%clk 0:03:01]}
2... d5 {[%clk 0:02:58.5]} 3. Bb2 {[%clk 0:03:01.3]} 3... Bf5 {[%clk 0:02:57.9]}
4. g3 {[%clk 0:03:01.2]} 4... e6 {[%clk 0:02:58.3]} 5. Bg2 {[%clk 0:03:01.7]}
5... Nbd7 {[%clk 0:02:58.9]} 6. O-O {[%clk 0:03:02.2]} 6... h6 {[%clk
0:02:59.5]} 7. d3 {[%clk 0:03:02.6]} 7... c6 {[%clk 0:02:59.8]} 8. Nbd2 {[%clk
0:03:03]} 8... Be7 {[%clk 0:02:59.6]} 9. Re1 {[%clk 0:03:03.5]} 9... Bh7 {[%clk
0:02:59.1]} 10. e4 {[%clk 0:03:03]} 10... O-O {[%clk 0:02:59.6]} 11. e5 {[%clk
0:03:00.5]} 11... Ne8 {[%clk 0:02:59]} 12. d4 {[%clk 0:02:58.1]} 12... c5 {[%clk
0:02:58.6]} 13. c4 {[%clk 0:02:56.6]} 13... Nc7 {[%clk 0:02:58.5]} 14. Rc1
{[%clk 0:02:51.7]} 14... Rc8 {[%clk 0:02:56.6]} 15. h4 {[%clk 0:02:47.8]} 15...
Bg6 {[%clk 0:02:43]} 16. Nh2 {[%clk 0:02:47]} 16... cxd4 {[%clk 0:02:40.6]} 17.
Bxd4 {[%clk 0:02:45.7]} 17... b6 {[%clk 0:02:17.7]} 18. Bb2 {[%clk 0:02:32.2]}
18... Nc5 {[%clk 0:02:09]} 19. cxd5 {[%clk 0:02:08.8]} 19... Nxd5 {[%clk
0:02:00.1]} 20. Ne4 {[%clk 0:02:00]} 20... Bxe4 {[%clk 0:01:30]} 21. Bxe4 {[%clk
0:02:00.9]} 21... Nb4 {[%clk 0:01:14.3]} 22. Qxd8 {[%clk 0:01:02.3]} 22... Rfxd8
{[%clk 0:01:15.2]} 23. Rcd1 {[%clk 0:01:02.7]} 23... Rxd1 {[%clk 0:01:12.9]} 24.
Rxd1 {[%clk 0:00:57.4]} 24... Nxe4 {[%clk 0:01:12.9]} 0-1

[Event "Late-Titled-Tuesday-Blitz-April-30-2024"]
[Site "Chess.com"]
[Date "2024.04.30"]
[Round "3"]
[White "nitpicker"]
[Black "whiteglovethief"]
[Result "0-1"]
[WhiteElo "2232"]
[BlackElo "2497"]
[TimeControl "180+1"]
[EndTime "14:27:07 PDT"]
[Termination "whiteglovethief won by resignation"]

1. d4 {[%clk 0:03:00.9]} 1... Nf6 {[%clk 0:02:56.2]} 2. c4 {[%clk 0:03:00.7]}
2... c5 {[%clk 0:02:56.5]} 3. d5 {[%clk 0:03:00.2]} 3... b5 {[%clk 0:02:56.8]}
4. cxb5 {[%clk 0:03:00.4]} 4... a6 {[%clk 0:02:57.2]} 5. e3 {[%clk 0:03:01.1]}
5... e6 {[%clk 0:02:55.1]} 6. Nc3 {[%clk 0:02:54.9]} 6... Bb7 {[%clk 0:02:51.3]}
7. dxe6 {[%clk 0:02:54.8]} 7... fxe6 {[%clk 0:02:51]} 8. a4 {[%clk 0:02:47.3]}
8... d5 {[%clk 0:02:49]} 9. Nf3 {[%clk 0:02:40.9]} 9... Bd6 {[%clk 0:02:46.2]}
10. Be2 {[%clk 0:02:36.1]} 10... O-O {[%clk 0:02:46.1]} 11. O-O {[%clk
0:02:35.5]} 11... e5 {[%clk 0:02:46.2]} 12. e4 {[%clk 0:02:35.8]} 12... d4
{[%clk 0:02:45.8]} 13. Bc4+ {[%clk 0:02:30.1]} 13... Kh8 {[%clk 0:02:45.2]} 14.
Nd5 {[%clk 0:02:07.7]} 14... Nxd5 {[%clk 0:02:43.7]} 15. Re1 {[%clk 0:02:08.4]}
15... Nb6 {[%clk 0:02:37.4]} 16. Bf1 {[%clk 0:02:05.7]} 16... axb5 {[%clk
0:02:37.4]} 17. Bxb5 {[%clk 0:01:59.8]} 17... Nc6 {[%clk 0:02:32.3]} 18. Ng5
{[%clk 0:01:58.8]} 18... Qf6 {[%clk 0:02:22]} 19. Rf1 {[%clk 0:01:51.1]} 19...
Nb4 {[%clk 0:02:14.5]} 20. a5 {[%clk 0:01:42.7]} 20... Ba6 {[%clk 0:02:03.7]}
21. Bxa6 {[%clk 0:01:39.4]} 21... Rxa6 {[%clk 0:02:04.6]} 22. Ra3 {[%clk
0:01:39.3]} 22... Nc4 {[%clk 0:02:04.1]} 23. Rh3 {[%clk 0:01:37.4]} 23... h6
{[%clk 0:02:04.1]} 24. Qh5 {[%clk 0:01:32]} 24... Be7 {[%clk 0:01:57.4]} 25. Nf3
{[%clk 0:01:28.2]} 25... Nd3 {[%clk 0:01:52.4]} 26. Bg5 {[%clk 0:01:24.2]} 26...
Qf7 {[%clk 0:01:48.8]} 27. Bxe7 {[%clk 0:01:21.3]} 27... Qxh5 {[%clk 0:01:47]}
28. Rxh5 {[%clk 0:01:18.9]} 28... Rxf3 {[%clk 0:01:45.6]} 29. gxf3 {[%clk
0:01:16.9]} 29... Nd2 {[%clk 0:01:44.5]} 30. Rd1 {[%clk 0:01:15.4]} 30... Nxf3+
{[%clk 0:01:44.6]} 31. Kf1 {[%clk 0:01:10.5]} 31... Nxb2 {[%clk 0:01:41.3]} 32.
Rb1 {[%clk 0:01:10.4]} 32... Nd2+ {[%clk 0:01:40.8]} 33. Ke2 {[%clk 0:01:09.3]}
33... Nxb1 {[%clk 0:01:40.9]} 34. Rxe5 {[%clk 0:01:09.6]} 34... Nc3+ {[%clk
0:01:38.7]} 35. Kf3 {[%clk 0:01:09.5]} 35... d3 {[%clk 0:01:35.5]} 36. Rxc5
{[%clk 0:01:06]} 36... d2 {[%clk 0:01:35]} 37. Rc8+ {[%clk 0:01:04.8]} 37... Kh7
{[%clk 0:01:33.3]} 0-1

[Event "Late-Titled-Tuesday-Blitz-April-30-2024"]
[Site "Chess.com"]
[Date "2024.04.30"]
[Round "3"]
[White "guillembaches"]
[Black "Semyon_Khanin"]
[Result "0-1"]
[WhiteElo "2589"]
[BlackElo "2875"]
[TimeControl "180+1"]
[EndTime "14:27:11 PDT"]
[Termination "Semyon_Khanin won on time"]

1. d4 {[%clk 0:03:00.9]} 1... Nf6 {[%clk 0:02:59.2]} 2. Nf3 {[%clk 0:03:01.5]}
2... d5 {[%clk 0:02:59.1]} 3. Bg5 {[%clk 0:03:00.9]} 3... Nbd7 {[%clk
0:02:56.7]} 4. Nbd2 {[%clk 0:03:00.5]} 4... b6 {[%clk 0:02:56.9]} 5. e3 {[%clk
0:03:00.5]} 5... Bb7 {[%clk 0:02:57.2]} 6. Bd3 {[%clk 0:03:00.2]} 6... g6 {[%clk
0:02:57.5]} 7. O-O {[%clk 0:02:57.4]} 7... Bg7 {[%clk 0:02:57.8]} 8. c3 {[%clk
0:02:49]} 8... O-O {[%clk 0:02:57.7]} 9. Re1 {[%clk 0:02:46.3]} 9... Ne4 {[%clk
0:02:56]} 10. Bh4 {[%clk 0:02:45.6]} 10... f5 {[%clk 0:02:52.4]} 11. Qe2 {[%clk
0:02:37]} 11... c5 {[%clk 0:02:50.3]} 12. Ba6 {[%clk 0:02:32.6]} 12... Bxa6
{[%clk 0:02:27.2]} 13. Qxa6 {[%clk 0:02:33.5]} 13... c4 {[%clk 0:02:12.7]} 14.
Nxe4 {[%clk 0:02:11.5]} 14... fxe4 {[%clk 0:02:12.1]} 15. Ng5 {[%clk 0:02:09.4]}
15... e6 {[%clk 0:02:02.5]} 16. Nf3 {[%clk 0:01:38.5]} 16... Bf6 {[%clk
0:02:02.3]} 17. Bxf6 {[%clk 0:01:30.4]} 17... Qxf6 {[%clk 0:02:01.9]} 18. Ne5
{[%clk 0:01:30.7]} 18... Qxf2+ {[%clk 0:01:57.9]} 19. Kh1 {[%clk 0:01:30.6]}
19... Nxe5 {[%clk 0:01:58.2]} 20. dxe5 {[%clk 0:01:31.5]} 20... Qxb2 {[%clk
0:01:58.5]} 21. Qb7 {[%clk 0:01:28.1]} 21... Qxc3 {[%clk 0:01:58]} 22. Qe7
{[%clk 0:01:27.8]} 22... Qxe5 {[%clk 0:01:58]} 0-1

[Event "Late-Titled-Tuesday-Blitz-April-30-2024"]
[Site "Chess.com"]
[Date "2024.04.30"]
[Round "3"]
[White "Iuckyducky"]
[Black "Real_taiatai"]
[Result "0-1"]
[WhiteElo "2217"]
[BlackElo "2477"]
[TimeControl "180+1"]
[EndTime "14:27:17 PDT"]
[Termination "Real_taiatai won by resignation"]

1. d4 {[%clk 0:02:42.3]} 1... d5 {[%clk 0:02:55.3]} 2. c4 {[%clk 0:02:41.1]}
2... dxc4 {[%clk 0:02:54.1]} 3. Nf3 {[%clk 0:02:37.9]} 3... c5 {[%clk
0:02:53.6]} 4. e3 {[%clk 0:02:37.8]} 4... cxd4 {[%clk 0:02:53.4]} 5. exd4 {[%clk
0:02:37.1]} 5... b5 {[%clk 0:02:53.3]} 6. a4 {[%clk 0:02:36.7]} 6... b4 {[%clk
0:02:44.7]} 7. Bxc4 {[%clk 0:02:35.8]} 7... Bb7 {[%clk 0:02:45.2]} 8. Bxf7+
{[%clk 0:01:22.7]} 8... Kxf7 {[%clk 0:02:44.3]} 9. Ne5+ {[%clk 0:01:23]} 9...
Ke8 {[%clk 0:02:44.3]} 10. Qh5+ {[%clk 0:01:23.2]} 10... g6 {[%clk 0:02:44.5]}
11. Nxg6 {[%clk 0:01:23.6]} 11... Nf6 {[%clk 0:02:44.8]} 12. Qh4 {[%clk
0:00:44.8]} 12... Rg8 {[%clk 0:02:44]} 13. Nxf8 {[%clk 0:00:43.8]} 13... Kxf8
{[%clk 0:02:44.9]} 14. Bg5 {[%clk 0:00:23.4]} 14... Nbd7 {[%clk 0:02:22.4]} 15.
Nd2 {[%clk 0:00:19.8]} 15... Qa5 {[%clk 0:02:21.7]} 16. f4 {[%clk 0:00:14.6]}
16... Qd5 {[%clk 0:02:12.7]} 17. Nf3 {[%clk 0:00:13.6]} 17... Ba6 {[%clk
0:02:05.4]} 18. Kf2 {[%clk 0:00:06.8]} 18... Ne4+ {[%clk 0:02:04]} 19. Ke3
{[%clk 0:00:04.2]} 19... Nxg5 {[%clk 0:01:55.5]} 20. Nxg5 {[%clk 0:00:04.5]}
20... Nf6 {[%clk 0:01:48]} 21. Qh6+ {[%clk 0:00:04.6]} 21... Ke8 {[%clk
0:01:47.3]} 22. Rhe1 {[%clk 0:00:02.7]} 22... Ng4+ {[%clk 0:01:45]} 0-1

[Event "Late-Titled-Tuesday-Blitz-April-30-2024"]
[Site "Chess.com"]
[Date "2024.04.30"]
[Round "3"]
[White "schachlana"]
[Black "Road2GM3000"]
[Result "1-0"]
[WhiteElo "2362"]
[BlackElo "2510"]
[TimeControl "180+1"]
[EndTime "14:27:18 PDT"]
[Termination "schachlana won by resignation"]

1. e4 {[%clk 0:03:00.9]} 1... e5 {[%clk 0:02:58.9]} 2. Nf3 {[%clk 0:02:59.7]}
2... Nf6 {[%clk 0:02:59.7]} 3. Nxe5 {[%clk 0:02:58.8]} 3... d6 {[%clk
0:03:00.4]} 4. Nf3 {[%clk 0:02:58.8]} 4... Nxe4 {[%clk 0:03:01.2]} 5. Bd3 {[%clk
0:02:59.6]} 5... d5 {[%clk 0:02:58.9]} 6. O-O {[%clk 0:02:59.6]} 6... Bd6 {[%clk
0:02:52.2]} 7. Re1 {[%clk 0:02:51.8]} 7... f5 {[%clk 0:02:49.1]} 8. c4 {[%clk
0:02:43.5]} 8... O-O {[%clk 0:02:33.8]} 9. cxd5 {[%clk 0:02:41.9]} 9... Ng5
{[%clk 0:02:30.7]} 10. Nc3 {[%clk 0:02:33.1]} 10... f4 {[%clk 0:02:30.6]} 11.
Ne4 {[%clk 0:02:24.7]} 11... Bg4 {[%clk 0:02:25.7]} 12. Nexg5 {[%clk 0:02:21.6]}
12... Nd7 {[%clk 0:02:11.9]} 13. Ne6 {[%clk 0:02:19.1]} 13... Qf6 {[%clk
0:02:10.9]} 14. Nxf8 {[%clk 0:02:16.3]} 14... Ne5 {[%clk 0:02:10.1]} 15. Nxh7
{[%clk 0:02:00.7]} 15... Qh6 {[%clk 0:01:51.3]} 16. Be4 {[%clk 0:01:55.2]} 16...
Re8 {[%clk 0:01:40.3]} 17. b3 {[%clk 0:01:28.2]} 17... Nxf3+ {[%clk 0:01:19.9]}
18. gxf3 {[%clk 0:01:16.3]} 18... Bh3 {[%clk 0:01:16.8]} 19. Kh1 {[%clk
0:01:11.8]} 19... Qh4 {[%clk 0:01:03.4]} 20. Bb2 {[%clk 0:01:02.4]} 20... Qxf2
{[%clk 0:01:01.3]} 21. Rg1 {[%clk 0:01:02.7]} 21... Rxe4 {[%clk 0:00:55]} 22.
Rxg7+ {[%clk 0:01:00.1]} 22... Kh8 {[%clk 0:00:55.2]} 23. Rg2+ {[%clk
0:00:53.4]} 1-0

[Event "Late-Titled-Tuesday-Blitz-April-30-2024"]
[Site "Chess.com"]
[Date "2024.04.30"]
[Round "3"]
[White "bubeliang"]
[Black "1g60-1"]
[Result "1-0"]
[WhiteElo "2807"]
[BlackElo "2441"]
[TimeControl "180+1"]
[EndTime "14:27:19 PDT"]
[Termination "bubeliang won by resignation"]

1. e4 {[%clk 0:03:00.9]} 1... e6 {[%clk 0:03:00.4]} 2. d4 {[%clk 0:03:00.9]}
2... d5 {[%clk 0:03:01]} 3. e5 {[%clk 0:03:01]} 3... c5 {[%clk 0:03:00.8]} 4. c3
{[%clk 0:03:01.1]} 4... Nc6 {[%clk 0:03:01.4]} 5. Nf3 {[%clk 0:03:00.8]} 5...
Bd7 {[%clk 0:03:02]} 6. Be2 {[%clk 0:03:00.5]} 6... f6 {[%clk 0:02:58]} 7. O-O
{[%clk 0:02:59.9]} 7... fxe5 {[%clk 0:02:57.9]} 8. Nxe5 {[%clk 0:02:59.2]} 8...
Nxe5 {[%clk 0:02:57.9]} 9. dxe5 {[%clk 0:03:00.1]} 9... Qc7 {[%clk 0:02:58.4]}
10. Bf4 {[%clk 0:03:00.3]} 10... O-O-O {[%clk 0:02:57.5]} 11. c4 {[%clk
0:02:58.7]} 11... d4 {[%clk 0:02:49.1]} 12. Re1 {[%clk 0:02:56]} 12... Ne7
{[%clk 0:02:49]} 13. Bd3 {[%clk 0:02:54.9]} 13... Ng6 {[%clk 0:02:42.7]} 14. Bg3
{[%clk 0:02:54.7]} 14... Be7 {[%clk 0:02:39.6]} 15. Nd2 {[%clk 0:02:54.5]} 15...
Rdf8 {[%clk 0:02:34.5]} 16. Ne4 {[%clk 0:02:52.9]} 16... Nf4 {[%clk 0:02:29.4]}
17. Qd2 {[%clk 0:02:46.1]} 17... Nxd3 {[%clk 0:02:27.5]} 18. Qxd3 {[%clk
0:02:45.6]} 18... Bc6 {[%clk 0:02:20.4]} 19. Nd6+ {[%clk 0:02:44.3]} 19... Kb8
{[%clk 0:02:20.2]} 20. a3 {[%clk 0:02:43]} 20... h5 {[%clk 0:02:16.5]} 21. h3
{[%clk 0:02:41]} 21... h4 {[%clk 0:02:13.5]} 22. Bh2 {[%clk 0:02:40.3]} 22... g5
{[%clk 0:02:05.6]} 23. b4 {[%clk 0:02:40.2]} 23... g4 {[%clk 0:01:55.8]} 24. b5
{[%clk 0:02:39.8]} 24... Bd7 {[%clk 0:01:54.2]} 25. hxg4 {[%clk 0:02:38]} 25...
h3 {[%clk 0:01:52.3]} 26. gxh3 {[%clk 0:02:32.5]} 26... Bxd6 {[%clk 0:01:45.8]}
27. exd6 {[%clk 0:02:32]} 27... Qd8 {[%clk 0:01:46.7]} 28. Qg3 {[%clk
0:02:20.8]} 28... Qf6 {[%clk 0:01:33.5]} 29. a4 {[%clk 0:02:14.3]} 29... d3
{[%clk 0:01:03.5]} 30. Rad1 {[%clk 0:02:03.2]} 30... b6 {[%clk 0:00:55.4]} 31.
Rxd3 {[%clk 0:01:57.8]} 31... e5 {[%clk 0:00:45.4]} 32. Qg2 {[%clk 0:01:50.9]}
32... e4 {[%clk 0:00:36.1]} 33. Rde3 {[%clk 0:01:47.2]} 33... Bc8 {[%clk
0:00:26]} 34. d7+ {[%clk 0:01:46.4]} 1-0